fUST/lending_fUST_20240916
["ID","MTS","AMOUNT","RATE_DAILY","PERIOD"]
[338322406,1726497045847,-500.0,0.00019178,2]
[338322407,1726497045857,-517.64,0.00019178,2]
[338322408,1726497045867,-539.11,0.00019178,2]
[338322409,1726497045877,-539.11,0.00019178,2]
[338322410,1726497045886,-539.11,0.00019178,2]
[338322411,1726497045896,-539.11,0.00019178,2]
[338322412,1726497045906,-539.11,0.00019178,2]
[338322413,1726497045916,-539.17,0.00019178,2]
[338322414,1726497045927,-500.0,0.00019178,2]
[338322415,1726497045937,-500.0,0.00019178,2]
[338322416,1726497045947,-505.96091189,0.00019178,2]
[338322417,1726497045956,-1386.69,0.00019178,2]
[338322418,1726497045966,-500.0,0.00019178,2]
[338322419,1726497045975,-500.0,0.00019178,2]
[338322420,1726497045985,-500.0,0.00019178,2]
[338322421,1726497045995,-500.0,0.00019178,2]
[338322422,1726497046004,-500.0,0.00019178,2]
[338322423,1726497046017,-500.0,0.00019178,2]
[338322424,1726497046027,-559.72917923,0.00019178,2]
[338322425,1726497046037,-508.10826721,0.00019178,2]
[338322426,1726497046048,-838.18,0.00019178,2]
[338322427,1726497046058,-500.0,0.00019178,2]
[338322428,1726497046067,-3589.42,0.00019178,2]
[338322429,1726497046077,-690.64,0.00019178,2]
[338322430,1726497046087,-500.0,0.00019178,2]
[338322431,1726497046096,-500.0,0.00019178,2]
[338322432,1726497046106,-500.0,0.00019178,2]
[338322434,1726497046115,-500.0,0.00019178,2]
[338322436,1726497046125,-858.26,0.00019178,2]
[338322437,1726497046134,-504.3,0.00019178,2]
[338322438,1726497046145,-500.0,0.00019178,2]
[338322439,1726497046154,-500.0,0.00019178,2]
[338322440,1726497046164,-500.0,0.00019178,2]
[338322441,1726497046173,-500.0,0.00019178,2]
[338322442,1726497046182,-570.19,0.00019178,2]
[338322443,1726497046192,-500.0,0.00019178,2]
[338322444,1726497046201,-500.0,0.00019178,2]
[338322445,1726497046211,-500.0,0.00019178,2]
[338322446,1726497046220,-500.0,0.00019178,2]
[338322447,1726497046230,-1005.78,0.00019178,2]
[338322448,1726497046239,-500.0,0.00019178,2]
[338322449,1726497046249,-500.0,0.00019178,2]
[338322450,1726497046259,-500.0,0.00019178,2]
[338322451,1726497046270,-651.23,0.00019178,2]
[338322453,1726497046281,-888.15,0.00019178,2]
[338322454,1726497046294,-500.0,0.00019178,2]
[338322455,1726497046303,-500.0,0.00019178,2]
[338322456,1726497046312,-500.0,0.00019178,2]
[338322457,1726497046322,-500.0,0.00019178,2]
[338322458,1726497046331,-668.28,0.00019178,2]
[338322459,1726497046341,-500.67237838,0.00019178,2]
[338322460,1726497046350,-180.96446196,0.00019178,2]
[338322461,1726497046360,-500.0,0.00019178,2]
[338322462,1726497046369,-1130.88,0.00019178,2]
[338322463,1726497046379,-3731.63,0.00019178,2]
[338322464,1726497046388,-500.0,0.00019178,2]
[338322465,1726497046398,-500.0,0.00019178,2]
[338322466,1726497046408,-500.0,0.00019178,2]
[338322467,1726497046417,-1622.06,0.00019178,2]
[338322468,1726497046427,-250.0,0.00019178,2]
[338322469,1726497046437,-500.0,0.00019178,2]
[338322472,1726497046609,-876.33,0.00019178,2]
[338322473,1726497046639,-500.0,0.00019178,2]
[338322474,1726497046649,-500.0,0.00019178,2]
[338322475,1726497046659,-500.0,0.00019178,2]
[338322476,1726497046669,-1155.78,0.00019178,2]
[338322477,1726497046679,-500.0,0.00019178,2]
[338322478,1726497046689,-500.0,0.00019178,2]
[338322479,1726497046698,-742.83,0.00019178,2]
[338322480,1726497046708,-500.0,0.00019178,2]
[338322481,1726497046717,-500.0,0.00019178,2]
[338322482,1726497046727,-500.0,0.00019178,2]
[338322483,1726497046737,-500.0,0.00019178,2]
[338322484,1726497046747,-500.0,0.00019178,2]
[338322485,1726497046756,-500.0,0.00019178,2]
[338322486,1726497046767,-662.57,0.00019178,2]
[338322487,1726497046777,-542.50582337,0.00019178,2]
[338322488,1726497046786,-500.0,0.00019178,2]
[338322489,1726497046795,-500.0,0.00019178,2]
[338322490,1726497046805,-500.0,0.00019178,2]
[338322491,1726497046815,-2649.48,0.00019178,2]
[338322492,1726497046825,-500.0,0.00019178,2]
[338322493,1726497046834,-500.0,0.00019178,2]
[338322494,1726497046844,-500.0,0.00019178,2]
[338322495,1726497046854,-500.0,0.00019178,2]
[338322496,1726497046864,-500.0,0.00019178,2]
[338322497,1726497046873,-500.0,0.00019178,2]
[338322498,1726497046883,-500.0,0.00019178,2]
[338322499,1726497046892,-500.0,0.00019178,2]
[338322500,1726497046902,-500.0,0.00019178,2]
[338322501,1726497046912,-500.0,0.00019178,2]
[338322502,1726497046922,-500.0,0.00019178,2]
[338322503,1726497046931,-1328.49,0.00019178,2]
[338322504,1726497046941,-509.62678104,0.00019178,2]
[338322505,1726497046951,-500.0,0.00019178,2]
[338322506,1726497046960,-500.0,0.00019178,2]
[338322507,1726497046969,-500.0,0.00019178,2]
[338322508,1726497046979,-500.0,0.00019178,2]
[338322509,1726497046988,-1246.67,0.00019178,2]
[338322510,1726497046998,-508.889072,0.00019178,2]
[338322511,1726497047009,-609.34600865,0.00019178,2]
[338322512,1726497047019,-500.0,0.00019178,2]
[338322513,1726497047029,-2139.40809923,0.00019178,2]
[338322514,1726497047389,-19.21190077,0.00019178,2]
[338322515,1726497047399,-500.0,0.00019178,2]
[338322516,1726497047409,-500.0,0.00019178,2]
[338322517,1726497047418,-504.52157418,0.00019178,2]
[338322518,1726497047427,-500.0,0.00019178,2]
[338322519,1726497047437,-2764.79,0.00019178,2]
[338322520,1726497047447,-500.0,0.00019178,2]
[338322521,1726497047456,-603.94,0.00019178,2]
[338322522,1726497047465,-500.0,0.00019178,2]
[338322523,1726497047475,-500.0,0.00019178,2]
[338322524,1726497047484,-500.0,0.00019178,2]
[338322525,1726497047494,-706.03,0.00019178,2]
[338322526,1726497047503,-102685.75,0.00019178,2]
[338322527,1726497047515,-2134.00034824,0.00019178,2]
[338322528,1726497047531,-167.43965176,0.00019178,2]
[338322529,1726497047541,-500.0,0.00019178,2]
[338322530,1726497047551,-1362.79,0.00019178,2]
[338322531,1726497047560,-500.0,0.00019178,2]
[338322532,1726497047570,-801.19,0.00019178,2]
[338322533,1726497047581,-500.0,0.00019178,2]
[338322534,1726497047590,-500.0,0.00019178,2]
[338322535,1726497047600,-1542.22,0.00019178,2]
[338322536,1726497047609,-500.0,0.00019178,2]
[338322537,1726497047619,-500.0,0.00019178,2]
[338322538,1726497047628,-500.0,0.00019178,2]
[338322539,1726497047637,-523.11,0.00019178,2]
[338322540,1726497047647,-4004.44,0.00019178,2]
[338322541,1726497047658,-500.0,0.00019178,2]
[338322542,1726497047667,-2387.98,0.00019178,2]
[338322543,1726497047677,-2387.98,0.00019178,2]
[338322544,1726497047687,-526.18823656,0.00019178,2]
[338322545,1726497047879,-1380.76116095,0.00019178,2]
[338322546,1726497047891,-481.03060249,0.00019178,2]
[338322547,1726497047901,-2387.98,0.00019178,2]
[338322548,1726497047910,-2387.98,0.00019178,2]
[338322549,1726497047919,-2387.98,0.00019178,2]
[338322550,1726497047928,-1083.99,0.00019178,2]
[338322551,1726497047937,-2387.98,0.00019178,2]
[338322552,1726497047947,-833.17,0.00019178,2]
[338322553,1726497047956,-2387.98,0.00019178,2]
[338322554,1726497047966,-646.94533022,0.00019178,2]
[338322555,1726497047975,-2387.98,0.00019178,2]
[338322556,1726497047984,-2387.98,0.00019178,2]
[338322557,1726497047993,-2387.98,0.00019178,2]
[338322558,1726497048002,-2387.98,0.00019178,2]
[338322559,1726497048013,-2387.98,0.00019178,2]
[338322560,1726497048022,-500.0,0.00019178,2]
[338322561,1726497048032,-2387.98,0.00019178,2]
[338322562,1726497048042,-673.55,0.00019178,2]
[338322563,1726497048052,-500.0,0.00019178,2]
[338322564,1726497048062,-2387.98,0.00019178,2]
[338322565,1726497048072,-2387.98,0.00019178,2]
[338322566,1726497048081,-2387.98,0.00019178,2]
[338322567,1726497048089,-500.0,0.00019178,2]
[338322568,1726497048099,-2387.98,0.00019178,2]
[338322569,1726497048109,-500.0,0.00019178,2]
[338322570,1726497048119,-514.32,0.00019178,2]
[338322571,1726497048128,-500.0,0.00019178,2]
[338322572,1726497048139,-227.90107623,0.00019178,2]
[338322573,1726497048148,-500.0,0.00019178,2]
[338322574,1726497048158,-1440.38,0.00019178,2]
[338322575,1726497048168,-500.0,0.00019178,2]
[338322576,1726497048179,-3645.76,0.00019178,2]
[338322577,1726497048189,-767.81,0.00019178,2]
[338322578,1726497048198,-500.0,0.00019178,2]
[338322579,1726497048208,-500.0,0.00019178,2]
[338322580,1726497048218,-929.89,0.00019178,2]
[338322581,1726497048228,-500.38016543,0.00019178,2]
[338322582,1726497048238,-500.0,0.00019178,2]
[338322583,1726497048251,-280.07568268,0.00019178,2]
[338322584,1726497048264,-602.68023402,0.00019178,2]
[338322585,1726497048278,-500.0,0.00019178,2]
[338322586,1726497048289,-500.0,0.00019178,2]
[338322587,1726497048299,-500.0,0.00019178,2]
[338322588,1726497048308,-500.0,0.00019178,2]
[338322589,1726497048319,-1676.15,0.00019178,2]
[338322590,1726497048329,-895.54,0.00019178,2]
[338322591,1726497048339,-41447.64,0.00019178,2]
[338322592,1726497048348,-500.0,0.00019178,2]
[338322593,1726497048358,-500.0,0.00019178,2]
[338322594,1726497048368,-500.0,0.00019178,2]
[338322595,1726497048377,-500.0,0.00019178,2]
[338322596,1726497048386,-3223.72,0.00019178,2]
[338322597,1726497048396,-500.0,0.00019178,2]
[338322598,1726497048405,-500.0,0.00019178,2]
[338322599,1726497048414,-500.0,0.00019178,2]
[338322600,1726497048423,-4449.05,0.00019178,2]
[338322601,1726497048433,-500.0,0.00019178,2]
[338322602,1726497048444,-500.0,0.00019178,2]
[338322603,1726497048454,-3321.48,0.00019178,2]
[338322604,1726497048464,-500.0,0.00019178,2]
[338322605,1726497048474,-786.85,0.00019178,2]
[338322606,1726497048484,-500.0,0.00019178,2]
[338322607,1726497048493,-500.0,0.00019178,2]
[338322608,1726497048504,-3801.65,0.00019178,2]
[338322609,1726497048515,-500.0,0.00019178,2]
[338322610,1726497048525,-7571.05,0.00019178,2]
[338322611,1726497048535,-500.0,0.00019178,2]
[338322612,1726497048544,-501.91149186,0.00019178,2]
[338322613,1726497048554,-500.0,0.00019178,2]
[338322614,1726497048563,-478.17278916,0.00019178,2]
[338322615,1726497048573,-500.0,0.00019178,2]
[338322616,1726497048582,-1545.01,0.00019178,2]
[338322617,1726497048591,-640.88,0.00019178,2]
[338322618,1726497048604,-500.0,0.00019178,2]
[338322619,1726497048614,-500.0,0.00019178,2]
[338322620,1726497048623,-500.0,0.00019178,2]
[338322621,1726497048633,-501.20946766,0.00019178,2]
[338322622,1726497048642,-500.0,0.00019178,2]
[338322623,1726497048652,-500.0,0.00019178,2]
[338322624,1726497048661,-931.54,0.00019178,2]
[338322625,1726497048670,-48770.7,0.00019178,2]
[338322626,1726497048680,-500.0,0.00019178,2]
[338322627,1726497048689,-500.0,0.00019178,2]
[338322628,1726497048698,-500.0,0.00019178,2]
[338322629,1726497048708,-500.0,0.00019178,2]
[338322630,1726497048717,-500.0,0.00019178,2]
[338322631,1726497048727,-500.0,0.00019178,2]
[338322632,1726497048736,-1519.09,0.00019178,2]
[338322633,1726497048746,-500.0,0.00019178,2]
[338322634,1726497048756,-500.0,0.00019178,2]
[338322635,1726497048768,-500.0,0.00019178,2]
[338322636,1726497048777,-500.0,0.00019178,2]
[338322637,1726497048786,-500.0,0.00019178,2]
[338322638,1726497048796,-500.0,0.00019178,2]
[338322639,1726497048806,-500.0,0.00019178,2]
[338322640,1726497048816,-500.0,0.00019178,2]
[338322641,1726497048825,-500.0,0.00019178,2]
[338322642,1726497048835,-500.0,0.00019178,2]
[338322643,1726497048845,-978.5,0.00019178,2]
[338322644,1726497048855,-500.0,0.00019178,2]
[338322645,1726497048866,-500.0,0.00019178,2]
[338322646,1726497048875,-2236.47,0.00019178,2]
[338322647,1726497048885,-500.0,0.00019178,2]
[338322648,1726497048895,-500.0,0.00019178,2]
[338322649,1726497048904,-500.0,0.00019178,2]
[338322650,1726497048913,-500.0,0.00019178,2]
[338322651,1726497048923,-11790.33,0.00019178,2]
[338322652,1726497048932,-442.1044748,0.00019178,2]
[338322653,1726497048942,-500.0,0.00019178,2]
[338322654,1726497048952,-3225.63,0.00019178,2]
[338322655,1726497048961,-500.0,0.00019178,2]
[338322656,1726497048970,-500.0,0.00019178,2]
[338322657,1726497048980,-500.0,0.00019178,2]
[338322658,1726497048990,-6304.06,0.00019178,2]
[338322659,1726497049000,-881.3,0.00019178,2]
[338322660,1726497049009,-500.0,0.00019178,2]
[338322661,1726497049018,-500.0,0.00019178,2]
[338322662,1726497049028,-4841.51,0.00019178,2]
[338322663,1726497049038,-500.0,0.00019178,2]
[338322664,1726497049047,-508.42931224,0.00019178,2]
[338322665,1726497049056,-4748.2,0.00019178,2]
[338322666,1726497049066,-500.0,0.00019178,2]
[338322667,1726497049273,-1488.47,0.00019178,2]
[338322668,1726497049285,-1143.7,0.00019178,2]
[338322669,1726497049295,-1169.99,0.00019178,2]
[338322670,1726497049304,-500.0,0.00019178,2]
[338322671,1726497049315,-559.72,0.00019178,2]
[338322672,1726497049325,-17076.81,0.00019178,2]
[338322673,1726497049334,-500.0,0.00019178,2]
[338322674,1726497049344,-3791.87,0.00019178,2]
[338322675,1726497049354,-500.0,0.00019178,2]
[338322676,1726497049366,-500.0,0.00019178,2]
[338322677,1726497049376,-500.0,0.00019178,2]
[338322678,1726497049385,-2934.5,0.00019178,2]
[338322679,1726497049394,-500.0,0.00019178,2]
[338322680,1726497049404,-695.32,0.00019178,2]
[338322681,1726497049413,-500.0,0.00019178,2]
[338322682,1726497049423,-5531.22,0.00019178,2]
[338322683,1726497049432,-563.56,0.00019178,2]
[338322684,1726497049442,-2261.85,0.00019178,2]
[338322685,1726497049452,-2086.0,0.00019178,2]
[338322686,1726497049462,-2757.72,0.00019178,2]
[338322687,1726497049472,-1464.28,0.00019178,2]
[338322688,1726497049481,-500.0,0.00019178,2]
[338322689,1726497049490,-500.0,0.00019178,2]
[338322690,1726497049500,-500.0,0.00019178,2]
[338322691,1726497049510,-500.0,0.00019178,2]
[338322692,1726497049520,-511.52972587,0.00019178,2]
[338322693,1726497049529,-4501.4,0.00019178,2]
[338322694,1726497049540,-1052.3,0.00019178,2]
[338322695,1726497049551,-500.0,0.00019178,2]
[338322696,1726497049562,-500.0,0.00019178,2]
[338322697,1726497049571,-500.0,0.00019178,2]
[338322698,1726497049581,-500.0,0.00019178,2]
[338322699,1726497049591,-4918.52,0.00019178,2]
[338322700,1726497049600,-1587.01,0.00019178,2]
[338322701,1726497049609,-500.0,0.00019178,2]
[338322702,1726497049618,-500.0,0.00019178,2]
[338322703,1726497049628,-1007.35,0.00019178,2]
[338322704,1726497049637,-501.94249044,0.00019178,2]
[338322705,1726497049647,-339.12,0.00019178,2]
[338322706,1726497049657,-526.6,0.00019178,2]
[338322707,1726497049666,-500.0,0.00019178,2]
[338322708,1726497049676,-500.0,0.00019178,2]
[338322709,1726497049685,-500.0,0.00019178,2]
[338322710,1726497049695,-500.0,0.00019178,2]
[338322711,1726497049705,-500.0,0.00019178,2]
[338322712,1726497049714,-3080.1,0.00019178,2]
[338322713,1726497049724,-1297.18,0.00019178,2]
[338322714,1726497049733,-500.0,0.00019178,2]
[338322715,1726497049745,-500.0,0.00019178,2]
[338322716,1726497049755,-13654.37,0.00019178,2]
[338322717,1726497049766,-500.0,0.00019178,2]
[338322718,1726497049776,-500.0,0.00019178,2]
[338322719,1726497049786,-23131.84,0.00019178,2]
[338322720,1726497049797,-500.0,0.00019178,2]
[338322721,1726497049807,-500.0,0.00019178,2]
[338322722,1726497049817,-500.0,0.00019178,2]
[338322723,1726497049826,-1715.0,0.00019178,2]
[338322724,1726497049835,-500.0,0.00019178,2]
[338322725,1726497049844,-1863.03,0.00019178,2]
[338322726,1726497049853,-3109.36,0.00019178,2]
[338322727,1726497049863,-500.0,0.00019178,2]
[338322728,1726497049874,-500.0,0.00019178,2]
[338322729,1726497049884,-2476.36,0.00019178,2]
[338322730,1726497049894,-811.03,0.00019178,2]
[338322731,1726497049903,-5598.15,0.00019178,2]
[338322732,1726497049913,-500.0,0.00019178,2]
[338322733,1726497049923,-501.93105341,0.00019178,2]
[338322734,1726497049932,-500.0,0.00019178,2]
[338322735,1726497049941,-369.46473495,0.00019178,2]
[338322736,1726497049951,-2657.94,0.00019178,2]
[338322737,1726497049960,-500.0,0.00019178,2]
[338322738,1726497049970,-3274.94,0.00019178,2]
[338322739,1726497049980,-211.78010856,0.00019178,2]
[338322740,1726497049989,-635.42,0.00019178,2]
[338322741,1726497049998,-500.0,0.00019178,2]
[338322742,1726497050007,-1731.81,0.00019178,2]
[338322743,1726497050023,-1336.71,0.00019178,2]
[338322744,1726497050034,-500.0,0.00019178,2]
[338322745,1726497050043,-500.0,0.00019178,2]
[338322746,1726497050052,-544.77,0.00019178,2]
[338322747,1726497050062,-500.0,0.00019178,2]
[338322748,1726497050071,-500.0,0.00019178,2]
[338322749,1726497050080,-503.50943735,0.00019178,2]
[338322750,1726497050090,-500.0,0.00019178,2]
[338322751,1726497050099,-500.0,0.00019178,2]
[338322752,1726497050108,-500.0,0.00019178,2]
[338322753,1726497050118,-806.32,0.00019178,2]
[338322754,1726497050127,-500.0,0.00019178,2]
[338322755,1726497050136,-7381.23,0.00019178,2]
[338322756,1726497050145,-610.93,0.00019178,2]
[338322757,1726497050154,-500.0,0.00019178,2]
[338322758,1726497050163,-3965.91,0.00019178,2]
[338322759,1726497050173,-500.0,0.00019178,2]
[338322760,1726497050182,-1139.83,0.00019178,2]
[338322761,1726497050192,-151.0,0.00019178,2]
[338322762,1726497050201,-863.82,0.00019178,2]
[338322763,1726497050210,-845.33,0.00019178,2]
[338322764,1726497050220,-483.84011679,0.00019178,2]
[338322765,1726497050229,-500.0,0.00019178,2]
[338322766,1726497050238,-500.0,0.00019178,2]
[338322767,1726497050247,-500.0,0.00019178,2]
[338322768,1726497050257,-8138.39,0.00019178,2]
[338322769,1726497050269,-500.90889805,0.00019178,2]
[338322770,1726497050279,-500.0,0.00019178,2]
[338322771,1726497050290,-500.0,0.00019178,2]
[338322772,1726497050299,-1396.11,0.00019178,2]
[338322773,1726497050308,-500.0,0.00019178,2]
[338322774,1726497050317,-1596.17,0.00019178,2]
[338322775,1726497050326,-500.0,0.00019178,2]
[338322776,1726497050336,-642.03,0.00019178,2]
[338322777,1726497050346,-2847.07,0.00019178,2]
[338322778,1726497050354,-4310.42,0.00019178,2]
[338322779,1726497050364,-1000.0,0.00019178,2]
[338322780,1726497050374,-935.12,0.00019178,2]
[338322781,1726497050383,-500.0,0.00019178,2]
[338322782,1726497050392,-500.0,0.00019178,2]
[338322783,1726497050401,-500.0,0.00019178,2]
[338322784,1726497050411,-500.0,0.00019178,2]
[338322785,1726497050420,-500.0,0.00019178,2]
[338322786,1726497050429,-500.0,0.00019178,2]
[338322787,1726497050438,-1741.82,0.00019178,2]
[338322788,1726497050447,-1741.82,0.00019178,2]
[338322789,1726497050457,-1741.82,0.00019178,2]
[338322790,1726497050467,-1741.82,0.00019178,2]
[338322791,1726497050476,-1741.82,0.00019178,2]
[338322792,1726497050485,-658.09,0.00019178,2]
[338322793,1726497050494,-1741.82,0.00019178,2]
[338322794,1726497050503,-1741.82,0.00019178,2]
[338322795,1726497050513,-1741.82,0.00019178,2]
[338322796,1726497050522,-522.23578406,0.00019178,2]
[338322797,1726497050531,-1741.82,0.00019178,2]
[338322798,1726497050541,-1741.82,0.00019178,2]
[338322799,1726497050550,-1741.82,0.00019178,2]
[338322800,1726497050560,-1741.82,0.00019178,2]
[338322801,1726497050569,-6288.4,0.00019178,2]
[338322802,1726497050578,-1741.82,0.00019178,2]
[338322803,1726497050588,-1741.82,0.00019178,2]
[338322804,1726497050598,-558.61,0.00019178,2]
[338322805,1726497050607,-1741.82,0.00019178,2]
[338322806,1726497050616,-1741.82,0.00019178,2]
[338322807,1726497050626,-1741.82,0.00019178,2]
[338322808,1726497050636,-918.11,0.00019178,2]
[338322809,1726497050645,-1741.82,0.00019178,2]
[338322810,1726497050654,-1001.53,0.00019178,2]
[338322811,1726497050664,-1741.82,0.00019178,2]
[338322812,1726497050673,-2082.88,0.00019178,2]
[338322813,1726497050683,-1741.82,0.00019178,2]
[338322814,1726497050693,-511.55,0.00019178,2]
[338322815,1726497050702,-1741.82,0.00019178,2]
[338322816,1726497050711,-1741.82,0.00019178,2]
[338322817,1726497050720,-500.0,0.00019178,2]
[338322818,1726497050730,-500.0,0.00019178,2]
[338322819,1726497050740,-1741.82,0.00019178,2]
[338322820,1726497050749,-1742.00764038,0.00019178,2]
[338322821,1726497050758,-651.61,0.00019178,2]
[338322822,1726497050769,-511.99716043,0.00019178,2]
[338322823,1726497050779,-500.0,0.00019178,2]
[338322824,1726497050790,-4447.9,0.00019178,2]
[338322825,1726497050799,-500.0,0.00019178,2]
[338322826,1726497050809,-500.0,0.00019178,2]
[338322827,1726497050818,-151.0,0.00019178,2]
[338322828,1726497050827,-500.0,0.00019178,2]
[338322829,1726497050837,-500.0,0.00019178,2]
[338322830,1726497050846,-500.0,0.00019178,2]
[338322831,1726497050856,-500.0,0.00019178,2]
[338322832,1726497050865,-500.68265068,0.00019178,2]
[338322833,1726497050875,-546.11,0.00019178,2]
[338322834,1726497050884,-500.0,0.00019178,2]
[338322835,1726497050893,-3935.67,0.00019178,2]
[338322836,1726497050902,-500.0,0.00019178,2]
[338322837,1726497050911,-500.0,0.00019178,2]
[338322838,1726497050921,-1741.97,0.00019178,2]
[338322839,1726497050930,-500.0,0.00019178,2]
[338322840,1726497050939,-2893.2,0.00019178,2]
[338322841,1726497050948,-160.46479,0.00019178,2]
[338322842,1726497050957,-3428.753328,0.00019178,2]
[338322843,1726497050966,-3000.0,0.0001918,2]
[338322844,1726497050975,-5076.29193599,0.00019184,2]
[338322845,1726497050985,-3000.0,0.0001919,2]
[338322846,1726497050994,-150.112233,0.000192,2]
[338322847,1726497051004,-3000.0,0.000192,2]
[338322848,1726497051014,-3000.0,0.0001921,2]
[338322849,1726497051023,-3000.0,0.0001922,2]
[338322850,1726497051032,-2387.98,0.00019229,2]
[338322851,1726497051041,-3000.0,0.0001923,2]
[338322852,1726497051050,-6896.47964292,0.0001924,5]
[338322853,1726497051059,-3000.0,0.0001924,2]
[338322854,1726497051068,-150.0,0.0001925,2]
[338322855,1726497051077,-524.0,0.0001925,2]
[338322856,1726497051086,-239.0,0.0001925,2]
[338322857,1726497051095,-3000.0,0.0001925,2]
[338322858,1726497051105,-3000.0,0.0001926,2]
[338322859,1726497051115,-3000.0,0.0001927,2]
[338322860,1726497051124,-3000.0,0.0001928,2]
[338322861,1726497051134,-150.0,0.00019289,2]
[338322862,1726497051144,-3000.0,0.0001929,2]
[338322863,1726497051154,-3000.0,0.000193,2]
[338322864,1726497051163,-151.0,0.00019305,2]
[338322865,1726497051173,-151.0,0.00019305,2]
[338322866,1726497051182,-964.706266,0.00019305,2]
[338322867,1726497051191,-151.0,0.00019305,2]
[338322868,1726497051201,-964.706266,0.00019305,2]
[338322869,1726497051210,-1571.042059,0.00019305,2]
[338322870,1726497051219,-1571.042059,0.00019305,2]
[338322871,1726497051228,-151.0,0.00019305,2]
[338322872,1726497051237,-204.950921,0.00019305,2]
[338322873,1726497051247,-204.950921,0.00019305,2]
[338322874,1726497051257,-3000.0,0.0001931,2]
[338322875,1726497051268,-3000.0,0.0001932,2]
[338322876,1726497051278,-6758.34315093,0.00019323,2]
[338322877,1726497051289,-3000.0,0.0001933,2]
[338322878,1726497051298,-3000.0,0.0001934,2]
[338322879,1726497051308,-2387.98,0.00019359,2]
[338322880,1726497051317,-2387.98,0.00019359,2]
[338322881,1726497051328,-2387.98,0.00019359,2]
[338322882,1726497051339,-2387.98,0.00019359,2]
[338322883,1726497051348,-2387.99441081,0.00019359,2]
[338322884,1726497051360,-500.0,0.00019452,2]
[338322885,1726497051369,-501.12562983,0.00019452,2]
[338322886,1726497051378,-223.66610147,0.00019452,2]
[338322887,1726497051388,-500.89665404,0.00019452,2]
[338322888,1726497051398,-501.29055434,0.00019452,2]
[338322889,1726497051407,-500.0,0.00019452,2]
[338322890,1726497051416,-500.0,0.00019452,2]
[338322891,1726497051425,-500.0,0.00019452,2]
[338322892,1726497051434,-500.0,0.00019452,2]
[338322893,1726497051443,-500.0,0.00019452,2]
[338322894,1726497051454,-500.0,0.00019452,2]
[338322895,1726497051463,-500.0,0.00019452,2]
[338322896,1726497051473,-500.0,0.00019452,2]
[338322897,1726497051482,-500.0,0.00019452,2]
[338322898,1726497051492,-1372.02,0.00019452,2]
[338322899,1726497051501,-1047.46,0.00019452,2]
[338322900,1726497051510,-533.75,0.00019452,2]
[338322901,1726497051519,-500.0,0.00019452,2]
[338322902,1726497051529,-730.89,0.00019452,2]
[338322903,1726497051539,-500.0,0.00019452,2]
[338322904,1726497051548,-500.0,0.00019452,2]
[338322905,1726497051557,-733.06,0.00019452,2]
[338322906,1726497051567,-1148.38,0.00019452,2]
[338322907,1726497051575,-500.0,0.00019452,2]
[338322908,1726497051584,-1291.0,0.00019452,2]
[338322909,1726497051594,-541.21,0.00019452,2]
[338322910,1726497051603,-500.0,0.00019452,2]